[Event "Titled Tuesday Blitz January 10 Late 2023"]
[White "Lutz, Igor Oscar"]
[Black "Mortazavi, Ali"]
[WhiteFideId "2110806"]
[BlackFideId "401323"]
[WhiteElo "1969"]
[BlackElo "2333"]
[Result "0-1"]
[Round "02"]
[TimeControl "180+2"]
[Date "2023.01.10"]
[WhiteClock "0:01:37"]
[BlackClock "0:02:18"]

1. d4 {[%clk 0:00:00]}  Nf6 {[%clk 0:00:00]} 2. c4 {[%clk 0:03:00]}  g6 {[%clk 0:02:59]} 3. Nc3 {[%clk 0:03:00]}  Bg7 {[%clk 0:02:59]} 4. e4 {[%clk 0:03:00]}  O-O {[%clk 0:03:00]} 5. Nf3 {[%clk 0:03:00]}  d6 {[%clk 0:03:01]} 6. Be2 {[%clk 0:03:00]}  Bg4 {[%clk 0:03:01]} 7. Be3 {[%clk 0:03:00]}  Nbd7 {[%clk 0:03:02]} 8. Ng1 {[%clk 0:02:58]}  e5 {[%clk 0:03:03]} 9. Bxg4 {[%clk 0:02:58]}  Nxg4 {[%clk 0:03:02]} 10. Qxg4 {[%clk 0:02:57]}  exd4 {[%clk 0:03:03]} 11. Bd2 {[%clk 0:02:53]}  dxc3 {[%clk 0:03:03]} 12. Bxc3 {[%clk 0:02:52]}  Bxc3+ {[%clk 0:03:03]} 13. bxc3 {[%clk 0:02:53]}  Ne5 {[%clk 0:03:02]} 14. Qe2 {[%clk 0:02:53]}  Re8 {[%clk 0:02:35]} 15. f4 {[%clk 0:02:53]}  Nd7 {[%clk 0:02:35]} 16. O-O-O {[%clk 0:02:28]}  Qf6 {[%clk 0:02:30]} 17. Qd2 {[%clk 0:01:44]}  Rxe4 {[%clk 0:02:24]} 18. Nf3 {[%clk 0:01:40]}  Rxc4 {[%clk 0:02:23]} 19. g3 {[%clk 0:01:40]}  Rxc3+ {[%clk 0:02:23]} 20. Kb1 {[%clk 0:01:37]}  Rxf3 {[%clk 0:02:18]} 0-1


[Site "https://www.chess.com"]

[Event "Titled Tuesday Blitz January 10 Late 2023"]
[White "Nogerbek, Kazybek"]
[Black "Nakamura, Hikaru"]
[WhiteFideId "13710427"]
[BlackFideId "2016192"]
[WhiteElo "2474"]
[BlackElo "2775"]
[Result "0-1"]
[Round "03"]
[TimeControl "180+2"]
[Date "2023.01.10"]
[WhiteClock "0:00:16"]
[BlackClock "0:00:27"]

1. d4 {[%clk 0:00:00]}  f5 {[%clk 0:00:00]} 2. e4 {[%clk 0:02:56]}  fxe4 {[%clk 0:02:58]} 3. Nc3 {[%clk 0:02:54]}  Nf6 {[%clk 0:02:58]} 4. Bg5 {[%clk 0:02:55]}  Nc6 {[%clk 0:02:58]} 5. d5 {[%clk 0:02:55]}  Ne5 {[%clk 0:02:59]} 6. Qe2 {[%clk 0:02:54]}  Nf7 {[%clk 0:02:59]} 7. Bxf6 {[%clk 0:02:55]}  exf6 {[%clk 0:02:58]} 8. Nxe4 {[%clk 0:02:55]}  Be7 {[%clk 0:02:56]} 9. d6 {[%clk 0:02:56]}  cxd6 {[%clk 0:02:54]} 10. O-O-O {[%clk 0:02:53]}  O-O {[%clk 0:02:54]} 11. Nf3 {[%clk 0:02:52]}  b6 {[%clk 0:02:54]} 12. Nd4 {[%clk 0:02:51]}  Bb7 {[%clk 0:02:51]} 13. Nf5 {[%clk 0:02:49]}  d5 {[%clk 0:02:42]} 14. Nc3 {[%clk 0:02:23]}  Re8 {[%clk 0:02:39]} 15. Nxd5 {[%clk 0:02:17]}  Bf8 {[%clk 0:02:38]} 16. Qf3 {[%clk 0:01:59]}  Rc8 {[%clk 0:02:38]} 17. Kb1 {[%clk 0:01:59]}  Bc5 {[%clk 0:02:29]} 18. Bc4 {[%clk 0:01:22]}  Kh8 {[%clk 0:02:00]} 19. Bb3 {[%clk 0:01:16]}  Re5 {[%clk 0:01:51]} 20. Nfe3 {[%clk 0:01:12]}  Bxe3 {[%clk 0:01:44]} 21. fxe3 {[%clk 0:01:08]}  Ng5 {[%clk 0:01:40]} 22. Qg4 {[%clk 0:01:09]}  Qe8 {[%clk 0:01:41]} 23. Nf4 {[%clk 0:01:08]}  Ne6 {[%clk 0:01:37]} 24. Qh3 {[%clk 0:00:57]}  Be4 {[%clk 0:00:39]} 25. a3 {[%clk 0:00:30]}  Nc5 {[%clk 0:00:36]} 26. Ka2 {[%clk 0:00:25]}  a5 {[%clk 0:00:36]} 27. Rd4 {[%clk 0:00:23]}  a4 {[%clk 0:00:33]} 28. Bxa4 {[%clk 0:00:20]}  Nxa4 {[%clk 0:00:30]} 29. Rxa4 {[%clk 0:00:20]}  Bxc2 {[%clk 0:00:30]} 30. Rd4 {[%clk 0:00:21]}  Rxe3 {[%clk 0:00:30]} 31. Qxd7 {[%clk 0:00:20]}  Bb3+ {[%clk 0:00:30]} 32. Ka1 {[%clk 0:00:20]}  Re1+ {[%clk 0:00:30]} 33. Rd1 {[%clk 0:00:16]}  Qxd7 {[%clk 0:00:31]} 34. Rdxe1 {[%clk 0:00:16]}  Qd2 {[%clk 0:00:27]} 0-1


[Site "https://www.chess.com"]

[Event "Titled Tuesday Blitz January 10 Late 2023"]
[White "Theodorou, Nikolas"]
[Black "Tanenbaum, Zachary"]
[WhiteFideId "4262875"]
[BlackFideId "2060850"]
[WhiteElo "2591"]
[BlackElo "2261"]
[Result "1-0"]
[Round "03"]
[TimeControl "180+2"]
[Date "2023.01.10"]
[WhiteClock "0:00:47"]
[BlackClock "0:00:08"]

1. e4 {[%clk 0:00:00]}  e5 {[%clk 0:00:00]} 2. d4 {[%clk 0:03:00]}  exd4 {[%clk 0:02:59]} 3. c3 {[%clk 0:03:01]}  dxc3 {[%clk 0:03:00]} 4. Bc4 {[%clk 0:03:01]}  cxb2 {[%clk 0:03:00]} 5. Bxb2 {[%clk 0:03:01]}  d5 {[%clk 0:03:01]} 6. Bxd5 {[%clk 0:03:02]}  Nf6 {[%clk 0:03:00]} 7. Bxf7+ {[%clk 0:03:03]}  Kxf7 {[%clk 0:03:01]} 8. Qxd8 {[%clk 0:03:03]}  Bb4+ {[%clk 0:03:01]} 9. Qd2 {[%clk 0:03:04]}  Bxd2+ {[%clk 0:03:02]} 10. Nxd2 {[%clk 0:03:05]}  Re8 {[%clk 0:03:02]} 11. f3 {[%clk 0:03:06]}  c5 {[%clk 0:03:02]} 12. Ne2 {[%clk 0:03:02]}  Nc6 {[%clk 0:03:02]} 13. Nf4 {[%clk 0:02:56]}  b6 {[%clk 0:03:01]} 14. Nc4 {[%clk 0:02:56]}  Rd8 {[%clk 0:02:45]} 15. Rd1 {[%clk 0:02:56]}  Rxd1+ {[%clk 0:02:16]} 16. Kxd1 {[%clk 0:02:39]}  Be6 {[%clk 0:02:03]} 17. Nd6+ {[%clk 0:02:40]}  Ke7 {[%clk 0:01:39]} 18. e5 {[%clk 0:02:04]}  Nd5 {[%clk 0:01:39]} 19. Nxd5+ {[%clk 0:02:05]}  Bxd5 {[%clk 0:01:34]} 20. a3 {[%clk 0:02:03]}  Ke6 {[%clk 0:01:34]} 21. Re1 {[%clk 0:02:04]}  Rd8 {[%clk 0:01:27]} 22. Kc1 {[%clk 0:02:04]}  Na5 {[%clk 0:01:26]} 23. f4 {[%clk 0:01:56]}  Bxg2 {[%clk 0:01:20]} 24. f5+ {[%clk 0:01:53]}  Kd7 {[%clk 0:01:03]} 25. Rg1 {[%clk 0:01:53]}  Bd5 {[%clk 0:00:48]} 26. Rxg7+ {[%clk 0:01:43]}  Kc6 {[%clk 0:00:47]} 27. f6 {[%clk 0:01:44]}  Nc4 {[%clk 0:00:47]} 28. Nxc4 {[%clk 0:01:26]}  Bxc4 {[%clk 0:00:42]} 29. Rxa7 {[%clk 0:01:25]}  b5 {[%clk 0:00:43]} 30. Rxh7 {[%clk 0:01:17]}  b4 {[%clk 0:00:37]} 31. axb4 {[%clk 0:01:16]}  cxb4 {[%clk 0:00:36]} 32. Rh4 {[%clk 0:01:03]}  Kb5 {[%clk 0:00:36]} 33. Rxc4 {[%clk 0:01:02]}  Kxc4 {[%clk 0:00:35]} 34. e6 {[%clk 0:01:02]}  Kd3 {[%clk 0:00:34]} 35. e7 {[%clk 0:01:03]}  Rg8 {[%clk 0:00:23]} 36. Be5 {[%clk 0:00:47]}  b3 {[%clk 0:00:08]} 37. f7 {[%clk 0:00:47]} 1-0


[Site "https://www.chess.com"]

[Event "Titled Tuesday Blitz January 10 Late 2023"]
[White "Bluebaum, Matthias"]
[Black "Klukin, Kirill"]
[WhiteFideId "24651516"]
[BlackFideId "24199273"]
[WhiteElo "2669"]
[BlackElo "2390"]
[Result "1/2-1/2"]
[Round "03"]
[TimeControl "180+2"]
[Date "2023.01.10"]
[WhiteClock "0:00:07"]
[BlackClock "0:00:03"]

1. d4 {[%clk 0:00:00]}  d5 {[%clk 0:00:00]} 2. c4 {[%clk 0:03:00]}  e6 {[%clk 0:02:56]} 3. Nc3 {[%clk 0:03:01]}  a6 {[%clk 0:02:57]} 4. cxd5 {[%clk 0:03:01]}  exd5 {[%clk 0:02:57]} 5. a3 {[%clk 0:03:01]}  c6 {[%clk 0:02:58]} 6. Bf4 {[%clk 0:03:01]}  Bd6 {[%clk 0:02:56]} 7. Bxd6 {[%clk 0:02:59]}  Qxd6 {[%clk 0:02:56]} 8. e3 {[%clk 0:02:59]}  Nf6 {[%clk 0:02:57]} 9. Bd3 {[%clk 0:03:00]}  O-O {[%clk 0:02:56]} 10. Nge2 {[%clk 0:03:01]}  Re8 {[%clk 0:02:57]} 11. Qd2 {[%clk 0:03:01]}  Nbd7 {[%clk 0:02:52]} 12. f3 {[%clk 0:03:02]}  Nf8 {[%clk 0:02:52]} 13. e4 {[%clk 0:03:02]}  dxe4 {[%clk 0:02:49]} 14. fxe4 {[%clk 0:03:02]}  Qd8 {[%clk 0:02:48]} 15. O-O {[%clk 0:03:03]}  Bg4 {[%clk 0:02:27]} 16. e5 {[%clk 0:02:56]}  Nd5 {[%clk 0:02:27]} 17. Ne4 {[%clk 0:02:42]}  Qb6 {[%clk 0:01:59]} 18. Kh1 {[%clk 0:02:39]}  Ne6 {[%clk 0:01:39]} 19. Nd6 {[%clk 0:02:34]}  Rf8 {[%clk 0:01:27]} 20. Rad1 {[%clk 0:02:19]}  f6 {[%clk 0:00:54]} 21. h3 {[%clk 0:02:15]}  Bxe2 {[%clk 0:00:41]} 22. Qxe2 {[%clk 0:01:32]}  Nef4 {[%clk 0:00:22]} 23. Rxf4 {[%clk 0:01:33]}  Nxf4 {[%clk 0:00:22]} 24. Bc4+ {[%clk 0:00:57]}  Kh8 {[%clk 0:00:22]} 25. Qg4 {[%clk 0:00:58]}  fxe5 {[%clk 0:00:16]} 26. Nf7+ {[%clk 0:00:40]}  Rxf7 {[%clk 0:00:16]} 27. Bxf7 {[%clk 0:00:40]}  Qxb2 {[%clk 0:00:15]} 28. dxe5 {[%clk 0:00:41]}  Qxe5 {[%clk 0:00:15]} 29. Qd7 {[%clk 0:00:32]}  h6 {[%clk 0:00:16]} 30. Qxb7 {[%clk 0:00:32]}  Rf8 {[%clk 0:00:10]} 31. Ba2 {[%clk 0:00:32]}  Qe4 {[%clk 0:00:11]} 32. Qb2 {[%clk 0:00:07]}  Nxh3 {[%clk 0:00:09]} 33. Bb1 {[%clk 0:00:08]}  Qh4 {[%clk 0:00:09]} 34. gxh3 {[%clk 0:00:08]}  Qxh3+ {[%clk 0:00:03]} 35. Kg1 {[%clk 0:00:05]}  Qg3+ {[%clk 0:00:02]} 36. Kh1 {[%clk 0:00:05]}  Qh3+ {[%clk 0:00:02]} 37. Kg1 {[%clk 0:00:06]}  Qg3+ {[%clk 0:00:02]} 38. Kh1 {[%clk 0:00:07]}  Qh3+ {[%clk 0:00:03]} 1/2-1/2


[Site "https://www.chess.com"]

[Event "Titled Tuesday Blitz January 10 Late 2023"]
[White "Injac, Teodora"]
[Black "Jobava, Baadur"]
[WhiteFideId "932400"]
[BlackFideId "13601520"]
[WhiteElo "2391"]
[BlackElo "2578"]
[Result "0-1"]
[Round "03"]
[TimeControl "180+2"]
[Date "2023.01.10"]
[WhiteClock "0:00:02"]
[BlackClock "0:00:31"]

1. Nf3 {[%clk 0:00:00]}  d5 {[%clk 0:00:00]} 2. g3 {[%clk 0:03:00]}  c6 {[%clk 0:02:59]} 3. Bg2 {[%clk 0:03:01]}  Bg4 {[%clk 0:02:59]} 4. O-O {[%clk 0:03:01]}  Nd7 {[%clk 0:03:00]} 5. h3 {[%clk 0:03:01]}  Bxf3 {[%clk 0:03:00]} 6. Bxf3 {[%clk 0:02:57]}  e6 {[%clk 0:03:00]} 7. d4 {[%clk 0:02:57]}  h5 {[%clk 0:03:01]} 8. c4 {[%clk 0:02:56]}  h4 {[%clk 0:02:59]} 9. g4 {[%clk 0:02:53]}  Bd6 {[%clk 0:02:58]} 10. e4 {[%clk 0:02:53]}  dxe4 {[%clk 0:02:59]} 11. Bxe4 {[%clk 0:02:39]}  Ngf6 {[%clk 0:02:53]} 12. Bg2 {[%clk 0:02:40]}  Qc7 {[%clk 0:02:52]} 13. Nc3 {[%clk 0:02:40]}  O-O {[%clk 0:02:51]} 14. g5 {[%clk 0:02:36]}  Nh7 {[%clk 0:02:27]} 15. Qg4 {[%clk 0:02:05]}  Rfd8 {[%clk 0:02:25]} 16. g6 {[%clk 0:02:05]}  Nhf6 {[%clk 0:02:10]} 17. gxf7+ {[%clk 0:01:57]}  Kxf7 {[%clk 0:02:04]} 18. Qf3 {[%clk 0:01:56]}  Rh8 {[%clk 0:02:05]} 19. Re1 {[%clk 0:01:48]}  Bb4 {[%clk 0:01:56]} 20. Bf4 {[%clk 0:01:40]}  Qa5 {[%clk 0:01:40]} 21. Re2 {[%clk 0:01:35]}  Rae8 {[%clk 0:01:40]} 22. Ne4 {[%clk 0:01:16]}  Nxe4 {[%clk 0:01:39]} 23. Rxe4 {[%clk 0:01:12]}  Qf5 {[%clk 0:01:32]} 24. a3 {[%clk 0:00:57]}  Be7 {[%clk 0:01:26]} 25. Rae1 {[%clk 0:00:53]}  Bf6 {[%clk 0:01:21]} 26. Bd2 {[%clk 0:00:51]}  Qxf3 {[%clk 0:01:21]} 27. Bxf3 {[%clk 0:00:44]}  e5 {[%clk 0:01:19]} 28. Bg4 {[%clk 0:00:45]}  Rd8 {[%clk 0:00:51]} 29. Ba5 {[%clk 0:00:45]}  b6 {[%clk 0:00:51]} 30. Bc3 {[%clk 0:00:25]}  exd4 {[%clk 0:00:50]} 31. Be6+ {[%clk 0:00:21]}  Kg6 {[%clk 0:00:44]} 32. Rg4+ {[%clk 0:00:20]}  Kh6 {[%clk 0:00:39]} 33. Bd2+ {[%clk 0:00:20]}  Kh7 {[%clk 0:00:40]} 34. Bf5+ {[%clk 0:00:17]}  Kg8 {[%clk 0:00:34]} 35. Be6+ {[%clk 0:00:15]}  Kf8 {[%clk 0:00:34]} 36. Rg6 {[%clk 0:00:05]}  Ne5 {[%clk 0:00:33]} 37. Rg2 {[%clk 0:00:02]}  Nf3+ {[%clk 0:00:31]} 0-1


[Site "https://www.chess.com"]

[Event "Titled Tuesday Blitz January 10 Late 2023"]
[White "Martinez Alcantara, Jose Eduardo"]
[Black "Costachi, Mihnea"]
[WhiteFideId "3805662"]
[BlackFideId "1217518"]
[WhiteElo "2619"]
[BlackElo "2476"]
[Result "1-0"]
[Round "03"]
[TimeControl "180+2"]
[Date "2023.01.10"]
[WhiteClock "0:01:11"]
[BlackClock "0:00:02"]

1. e4 {[%clk 0:00:00]}  e5 {[%clk 0:00:00]} 2. Nf3 {[%clk 0:03:00]}  Nf6 {[%clk 0:02:59]} 3. Nxe5 {[%clk 0:03:01]}  d6 {[%clk 0:02:59]} 4. Nf3 {[%clk 0:03:01]}  Nxe4 {[%clk 0:03:00]} 5. d4 {[%clk 0:03:01]}  d5 {[%clk 0:03:00]} 6. Bd3 {[%clk 0:03:02]}  Bd6 {[%clk 0:02:59]} 7. O-O {[%clk 0:03:03]}  O-O {[%clk 0:02:58]} 8. c4 {[%clk 0:03:03]}  c6 {[%clk 0:02:59]} 9. Nc3 {[%clk 0:03:04]}  Nxc3 {[%clk 0:02:59]} 10. bxc3 {[%clk 0:03:05]}  dxc4 {[%clk 0:02:59]} 11. Bxc4 {[%clk 0:03:06]}  Bg4 {[%clk 0:03:00]} 12. h3 {[%clk 0:03:07]}  Bh5 {[%clk 0:02:56]} 13. g4 {[%clk 0:03:07]}  Bg6 {[%clk 0:02:56]} 14. Ne5 {[%clk 0:03:07]}  Bxe5 {[%clk 0:02:55]} 15. dxe5 {[%clk 0:03:08]}  Qa5 {[%clk 0:02:35]} 16. Be3 {[%clk 0:03:09]}  Qxc3 {[%clk 0:02:35]} 17. Rc1 {[%clk 0:03:08]}  Qxe5 {[%clk 0:02:24]} 18. Re1 {[%clk 0:03:00]}  Qf6 {[%clk 0:02:22]} 19. Bc5 {[%clk 0:02:50]}  Rc8 {[%clk 0:02:06]} 20. Be7 {[%clk 0:02:32]}  Qb2 {[%clk 0:01:35]} 21. h4 {[%clk 0:02:17]}  b5 {[%clk 0:01:24]} 22. Re2 {[%clk 0:02:01]}  Qxc1 {[%clk 0:01:07]} 23. Qxc1 {[%clk 0:01:48]}  bxc4 {[%clk 0:00:47]} 24. Qxc4 {[%clk 0:01:49]}  Nd7 {[%clk 0:00:48]} 25. h5 {[%clk 0:01:41]}  Bb1 {[%clk 0:00:48]} 26. Rd2 {[%clk 0:01:39]}  Ne5 {[%clk 0:00:44]} 27. Qe2 {[%clk 0:01:31]}  f6 {[%clk 0:00:37]} 28. f4 {[%clk 0:01:26]}  Nf7 {[%clk 0:00:32]} 29. Qc4 {[%clk 0:01:26]}  Re8 {[%clk 0:00:26]} 30. Rd7 {[%clk 0:01:23]}  Rab8 {[%clk 0:00:23]} 31. Bb4 {[%clk 0:01:23]}  Rf8 {[%clk 0:00:10]} 32. Bxf8 {[%clk 0:01:13]}  Bxa2 {[%clk 0:00:03]} 33. Qxa2 {[%clk 0:01:12]}  Rxf8 {[%clk 0:00:02]} 34. g5 {[%clk 0:01:11]} 1-0


[Site "https://www.chess.com"]

[Event "Titled Tuesday Blitz January 10 Late 2023"]
[White "Svane, Rasmus"]
[Black "Milikow, Yoav"]
[WhiteFideId "4657101"]
[BlackFideId "2822237"]
[WhiteElo "2623"]
[BlackElo "2394"]
[Result "1-0"]
[Round "03"]
[TimeControl "180+2"]
[Date "2023.01.10"]
[WhiteClock "0:00:06"]
[BlackClock "0:00:02"]

1. Nf3 {[%clk 0:00:00]}  d5 {[%clk 0:00:00]} 2. g3 {[%clk 0:02:55]}  c5 {[%clk 0:02:55]} 3. Bg2 {[%clk 0:02:55]}  Nc6 {[%clk 0:02:51]} 4. d4 {[%clk 0:02:55]}  e6 {[%clk 0:02:47]} 5. O-O {[%clk 0:02:55]}  Nf6 {[%clk 0:02:36]} 6. c4 {[%clk 0:02:55]}  dxc4 {[%clk 0:02:36]} 7. Qa4 {[%clk 0:02:55]}  Bd7 {[%clk 0:02:34]} 8. Qxc4 {[%clk 0:02:53]}  cxd4 {[%clk 0:02:31]} 9. Nxd4 {[%clk 0:02:53]}  Rc8 {[%clk 0:02:30]} 10. Nc3 {[%clk 0:02:52]}  Be7 {[%clk 0:02:28]} 11. Rd1 {[%clk 0:02:52]}  Qb6 {[%clk 0:02:25]} 12. Nxc6 {[%clk 0:02:32]}  Bxc6 {[%clk 0:02:20]} 13. Bxc6+ {[%clk 0:01:12]}  Rxc6 {[%clk 0:02:18]} 14. Qb5 {[%clk 0:01:05]}  O-O {[%clk 0:02:15]} 15. Be3 {[%clk 0:01:05]}  Qxb5 {[%clk 0:02:08]} 16. Nxb5 {[%clk 0:01:05]}  Rc2 {[%clk 0:02:04]} 17. Nxa7 {[%clk 0:01:05]}  Nd5 {[%clk 0:02:00]} 18. Bd4 {[%clk 0:00:50]}  Rxe2 {[%clk 0:01:51]} 19. Re1 {[%clk 0:00:43]}  Rd2 {[%clk 0:01:43]} 20. Rad1 {[%clk 0:00:42]}  Rxd1 {[%clk 0:01:27]} 21. Rxd1 {[%clk 0:00:40]}  Ra8 {[%clk 0:01:16]} 22. Rc1 {[%clk 0:00:40]}  f6 {[%clk 0:01:16]} 23. Rc8+ {[%clk 0:00:35]}  Rxc8 {[%clk 0:00:46]} 24. Nxc8 {[%clk 0:00:26]}  Bf8 {[%clk 0:00:44]} 25. f4 {[%clk 0:00:27]}  Kf7 {[%clk 0:00:42]} 26. Kf2 {[%clk 0:00:22]}  Ke8 {[%clk 0:00:38]} 27. Ke2 {[%clk 0:00:22]}  Nb4 {[%clk 0:00:31]} 28. a3 {[%clk 0:00:22]}  Nc6 {[%clk 0:00:26]} 29. Be3 {[%clk 0:00:21]}  h5 {[%clk 0:00:26]} 30. Nb6 {[%clk 0:00:20]}  Bd6 {[%clk 0:00:20]} 31. b4 {[%clk 0:00:20]}  Ne7 {[%clk 0:00:18]} 32. Kd3 {[%clk 0:00:20]}  Nf5 {[%clk 0:00:18]} 33. Bf2 {[%clk 0:00:19]}  Nh6 {[%clk 0:00:18]} 34. Nc4 {[%clk 0:00:20]}  Bc7 {[%clk 0:00:17]} 35. b5 {[%clk 0:00:19]}  Nf7 {[%clk 0:00:17]} 36. a4 {[%clk 0:00:20]}  Kd7 {[%clk 0:00:16]} 37. a5 {[%clk 0:00:20]}  Nd6 {[%clk 0:00:16]} 38. a6 {[%clk 0:00:20]}  bxa6 {[%clk 0:00:16]} 39. bxa6 {[%clk 0:00:12]}  Kc6 {[%clk 0:00:12]} 40. Nxd6 {[%clk 0:00:12]}  Bxd6 {[%clk 0:00:07]} 41. Kc4 {[%clk 0:00:12]}  g5 {[%clk 0:00:07]} 42. Be3 {[%clk 0:00:12]}  h4 {[%clk 0:00:06]} 43. fxg5 {[%clk 0:00:11]}  hxg3 {[%clk 0:00:05]} 44. hxg3 {[%clk 0:00:09]}  fxg5 {[%clk 0:00:06]} 45. g4 {[%clk 0:00:08]}  Bf4 {[%clk 0:00:07]} 46. Bf2 {[%clk 0:00:08]}  Bd6 {[%clk 0:00:06]} 47. Kd3 {[%clk 0:00:06]}  Bf4 {[%clk 0:00:04]} 48. Ke4 {[%clk 0:00:06]}  Bd6 {[%clk 0:00:04]} 49. Be3 {[%clk 0:00:06]}  Be7 {[%clk 0:00:04]} 50. Ke5 {[%clk 0:00:07]}  Bd8 {[%clk 0:00:03]} 51. Kxe6 {[%clk 0:00:07]}  Bc7 {[%clk 0:00:03]} 52. Kf5 {[%clk 0:00:07]}  Bd8 {[%clk 0:00:02]} 53. Bxg5 {[%clk 0:00:06]} 1-0


[Site "https://www.chess.com"]

[Event "Titled Tuesday Blitz January 10 Late 2023"]
[White "Aravindh, Chithambaram VR."]
[Black "Levitskiy, Andrey"]
[WhiteFideId "5072786"]
[BlackFideId "14132885"]
[WhiteElo "2633"]
[BlackElo "2304"]
[Result "1-0"]
[Round "03"]
[TimeControl "180+2"]
[Date "2023.01.10"]
[WhiteClock "0:00:31"]
[BlackClock "0:00:02"]

1. b3 {[%clk 0:00:00]}  d5 {[%clk 0:00:00]} 2. Bb2 {[%clk 0:03:00]}  Bg4 {[%clk 0:02:59]} 3. Nf3 {[%clk 0:03:01]}  Nd7 {[%clk 0:02:59]} 4. g3 {[%clk 0:02:59]}  e6 {[%clk 0:02:55]} 5. Bg2 {[%clk 0:02:55]}  Ngf6 {[%clk 0:02:50]} 6. d3 {[%clk 0:02:55]}  Bd6 {[%clk 0:02:51]} 7. Nbd2 {[%clk 0:02:48]}  Qe7 {[%clk 0:02:51]} 8. h3 {[%clk 0:02:47]}  Bh5 {[%clk 0:02:51]} 9. a3 {[%clk 0:02:42]}  c6 {[%clk 0:02:50]} 10. g4 {[%clk 0:02:28]}  Bg6 {[%clk 0:02:48]} 11. Nh4 {[%clk 0:02:26]}  e5 {[%clk 0:02:47]} 12. e3 {[%clk 0:02:24]}  a5 {[%clk 0:02:42]} 13. Qe2 {[%clk 0:02:23]}  O-O {[%clk 0:02:37]} 14. Nxg6 {[%clk 0:02:19]}  hxg6 {[%clk 0:02:13]} 15. h4 {[%clk 0:02:12]}  e4 {[%clk 0:02:13]} 16. g5 {[%clk 0:02:12]}  Nh5 {[%clk 0:01:57]} 17. dxe4 {[%clk 0:02:01]}  Be5 {[%clk 0:01:48]} 18. Bxe5 {[%clk 0:02:00]}  Qxe5 {[%clk 0:01:48]} 19. O-O {[%clk 0:01:56]}  dxe4 {[%clk 0:01:44]} 20. Nxe4 {[%clk 0:01:46]}  Rfe8 {[%clk 0:01:42]} 21. Rad1 {[%clk 0:01:46]}  Nc5 {[%clk 0:01:21]} 22. Nxc5 {[%clk 0:01:45]}  Qxc5 {[%clk 0:01:21]} 23. Rd7 {[%clk 0:01:09]}  Re7 {[%clk 0:01:22]} 24. Rfd1 {[%clk 0:01:09]}  Rae8 {[%clk 0:00:56]} 25. Bf3 {[%clk 0:01:08]}  Nf4 {[%clk 0:00:56]} 26. Qc4 {[%clk 0:01:02]}  Qxc4 {[%clk 0:00:49]} 27. bxc4 {[%clk 0:01:01]}  Ne6 {[%clk 0:00:20]} 28. Kg2 {[%clk 0:01:02]}  Nc5 {[%clk 0:00:21]} 29. Rxe7 {[%clk 0:00:55]}  Rxe7 {[%clk 0:00:20]} 30. Rd8+ {[%clk 0:00:55]}  Kh7 {[%clk 0:00:21]} 31. Ra8 {[%clk 0:00:54]}  a4 {[%clk 0:00:22]} 32. Ra5 {[%clk 0:00:50]}  Re5 {[%clk 0:00:17]} 33. Bg4 {[%clk 0:00:42]}  Nd3 {[%clk 0:00:14]} 34. Rxa4 {[%clk 0:00:40]}  Ne1+ {[%clk 0:00:05]} 35. Kf1 {[%clk 0:00:37]}  Nxc2 {[%clk 0:00:05]} 36. Bd1 {[%clk 0:00:35]}  Na1 {[%clk 0:00:06]} 37. Rb4 {[%clk 0:00:33]}  Ra5 {[%clk 0:00:03]} 38. a4 {[%clk 0:00:32]}  b5 {[%clk 0:00:04]} 39. cxb5 {[%clk 0:00:32]}  cxb5 {[%clk 0:00:02]} 40. Rxb5 {[%clk 0:00:31]} 1-0


[Site "https://www.chess.com"]

[Event "Titled Tuesday Blitz January 10 Late 2023"]
[White "Skvortsov, Andrei"]
[Black "Moroni, Luca Jr"]
[WhiteFideId "24108600"]
[BlackFideId "865834"]
[WhiteElo "2313"]
[BlackElo "2535"]
[Result "0-1"]
[Round "03"]
[TimeControl "180+2"]
[Date "2023.01.10"]
[WhiteClock "0:00:06"]
[BlackClock "0:00:03"]

1. e4 {[%clk 0:00:00]}  g6 {[%clk 0:00:00]} 2. g3 {[%clk 0:03:00]}  Bg7 {[%clk 0:03:00]} 3. Bg2 {[%clk 0:02:53]}  c5 {[%clk 0:03:01]} 4. Ne2 {[%clk 0:02:54]}  Nc6 {[%clk 0:02:49]} 5. O-O {[%clk 0:02:52]}  d6 {[%clk 0:02:48]} 6. c3 {[%clk 0:02:52]}  e5 {[%clk 0:02:46]} 7. d3 {[%clk 0:02:50]}  Nge7 {[%clk 0:02:46]} 8. Be3 {[%clk 0:02:49]}  O-O {[%clk 0:02:46]} 9. Nd2 {[%clk 0:02:49]}  f5 {[%clk 0:02:47]} 10. f4 {[%clk 0:02:34]}  fxe4 {[%clk 0:02:31]} 11. dxe4 {[%clk 0:02:31]}  Be6 {[%clk 0:02:11]} 12. Nf3 {[%clk 0:02:29]}  Kh8 {[%clk 0:02:08]} 13. fxe5 {[%clk 0:02:27]}  Nxe5 {[%clk 0:02:02]} 14. Nf4 {[%clk 0:02:22]}  Bg4 {[%clk 0:01:54]} 15. h3 {[%clk 0:01:40]}  Bxf3 {[%clk 0:01:17]} 16. Bxf3 {[%clk 0:01:35]}  Qd7 {[%clk 0:01:14]} 17. Bg2 {[%clk 0:01:34]}  b5 {[%clk 0:01:14]} 18. Qe2 {[%clk 0:01:32]}  Rac8 {[%clk 0:01:02]} 19. Rad1 {[%clk 0:01:21]}  a5 {[%clk 0:00:48]} 20. Nd3 {[%clk 0:01:06]}  Rxf1+ {[%clk 0:00:47]} 21. Rxf1 {[%clk 0:00:55]}  Nxd3 {[%clk 0:00:42]} 22. Qxd3 {[%clk 0:00:54]}  Nc6 {[%clk 0:00:39]} 23. Bxc5 {[%clk 0:00:54]}  Ne5 {[%clk 0:00:39]} 24. Qxd6 {[%clk 0:00:44]}  Qxd6 {[%clk 0:00:39]} 25. Bxd6 {[%clk 0:00:44]}  Nc4 {[%clk 0:00:29]} 26. e5 {[%clk 0:00:45]}  Nxe5 {[%clk 0:00:30]} 27. Bxe5 {[%clk 0:00:39]}  Bxe5 {[%clk 0:00:16]} 28. g4 {[%clk 0:00:17]}  b4 {[%clk 0:00:17]} 29. cxb4 {[%clk 0:00:16]}  axb4 {[%clk 0:00:17]} 30. Rb1 {[%clk 0:00:13]}  Rc2 {[%clk 0:00:17]} 31. a4 {[%clk 0:00:12]}  Bxb2 {[%clk 0:00:17]} 32. Be4 {[%clk 0:00:11]}  Rd2 {[%clk 0:00:14]} 33. a5 {[%clk 0:00:07]}  Bc3 {[%clk 0:00:08]} 34. a6 {[%clk 0:00:07]}  Ra2 {[%clk 0:00:08]} 35. Bb7 {[%clk 0:00:05]}  Kg7 {[%clk 0:00:08]} 36. Kf1 {[%clk 0:00:04]}  Kf6 {[%clk 0:00:08]} 37. Rd1 {[%clk 0:00:04]}  b3 {[%clk 0:00:08]} 38. Rb1 {[%clk 0:00:04]}  b2 {[%clk 0:00:07]} 39. Ke2 {[%clk 0:00:04]}  Ke5 {[%clk 0:00:06]} 40. Kd3 {[%clk 0:00:04]}  Ra3 {[%clk 0:00:04]} 41. Kc2 {[%clk 0:00:04]}  Bd4 {[%clk 0:00:02]} 42. Re1+ {[%clk 0:00:04]}  Kf4 {[%clk 0:00:02]} 43. Rb1 {[%clk 0:00:03]}  Ra4 {[%clk 0:00:02]} 44. Kb3 {[%clk 0:00:04]}  Ra5 {[%clk 0:00:01]} 45. Kc4 {[%clk 0:00:04]}  Ra1 {[%clk 0:00:02]} 46. Kd3 {[%clk 0:00:04]}  Rxb1 {[%clk 0:00:02]} 47. Kxd4 {[%clk 0:00:05]}  Ra1 {[%clk 0:00:02]} 48. Kc3 {[%clk 0:00:06]}  b1=Q {[%clk 0:00:03]} 0-1


[Site "https://www.chess.com"]